bitfinex-derivatives/quotes_SOLF0:USTF0_20240816
["timestamp","ask_amount","ask_price","bid_price","bid_amount"]
[1723821167576,57.95,139.23,139.16,51.87918025]
[1723821167577,6.12,139.23,139.16,51.87918025]
[1723821167977,3.5915,139.2,139.17,3.592]
[1723821168280,7.50335968,139.24,139.18,51.83]
[1723821168475,3.591,139.22,139.18,55.4218]
[1723821168679,7.50335968,139.24,139.18,51.83]
[1723821168971,3.5913,139.21,139.2,0.04979799]
[1723821169874,51.83,139.23,139.15,3.5925]
[1723821170173,59.034,139.22,139.12,51.83]
[1723821170483,3.5923,139.17,139.12,51.83]
[1723821170880,3.5923,139.17,139.13,3.5931]
[1723821171578,3.5923,139.17,139.13,3.64572881]
[1723821171579,0.04848965,139.16,139.13,3.64572881]
[1723821171778,0.04848965,139.16,139.14,51.83]
[1723821172772,0.04848965,139.16,139.14,55.4229]
[1723821172974,0.04848965,139.16,139.14,51.83]
[1723821173582,0.04848965,139.16,139.13,0.05262881]
[1723821173996,6.12,139.15,139.13,0.05262881]
[1723821174379,3.593,139.14,139.13,0.05262881]
[1723821174579,6.12,139.15,139.07,53.2108]
[1723821174580,6.12,139.15,139.07,51.83]
[1723821174877,13.324,139.15,139.07,51.83]
[1723821175085,6.12,139.15,139.07,51.83]
[1723821175585,3.5932,139.13,139.09,3.5941]
[1723821175787,0.05136305,139.12,139.1,0.04569855]
[1723821177285,3.5937,139.11,139.1,0.04569855]
[1723821177580,0.05136305,139.12,139.1,0.04569855]
[1723821177888,3.64486305,139.12,139.1,0.04569855]
[1723821178384,3.5937,139.11,139.1,0.04569855]
[1723821180677,9.7137,139.11,139.1,0.04569855]
[1723821182086,3.5937,139.11,139.1,0.04569855]
[1723821183080,3.64496305,139.12,139.1,0.04569855]
[1723821183790,3.5937,139.11,139.1,0.04569855]
[1723821185184,3.64496305,139.12,139.1,0.04569855]
[1723821185393,0.05136305,139.12,139.1,0.04569855]
[1723821185691,3.64496305,139.12,139.1,0.04569855]
[1723821187087,0.05136305,139.12,139.1,0.04569855]
[1723821187590,0.05136305,139.12,139.1,3.63959855]
[1723821188489,0.05136305,139.12,139.11,3.5937]
[1723821189984,0.05136305,139.12,139.1,55.46959855]
[1723821190187,0.05136305,139.12,139.1,51.87569855]
[1723821190891,0.05136305,139.12,139.11,3.5937]
[1723821191487,1.3778,139.2,139.13,3.5931]
[1723821191683,3.5923,139.17,139.13,51.83]
[1723821191989,6.1,139.19,139.13,51.83]
[1723821192193,3.5925,139.16,139.14,3.5929]
[1723821192389,2.7167,139.21,139.14,3.5929]
[1723821192591,0.04601,139.19,139.16,0.05532137]
[1723821192791,3.63781,139.19,139.16,0.05532137]
[1723821192994,0.04601,139.19,139.16,0.05532137]
[1723821193294,0.04601,139.19,139.17,51.83]
[1723821193691,0.04601,139.19,139.18,51.83]
[1723821193990,3.5908,139.23,139.2,3.5914]
[1723821194388,6.07677455,139.26,139.18,51.83]
[1723821194583,6.07677455,139.26,139.18,55.38675977]
[1723821194787,1.3419,139.3,139.23,51.83]
[1723821194984,3.5894,139.28,139.23,51.83]
[1723821195188,3.5894,139.28,139.2,51.83]
[1723821195189,8.6593,139.32,139.25,51.88407003]
[1723821195391,3.63540783,139.31,139.25,51.88407003]
[1723821195591,3.5891,139.29,139.25,51.88407003]
[1723821195795,2.5593,139.32,139.25,51.88407003]
[1723821195985,2.5593,139.32,139.26,64.65]
[1723821196496,3.50827808,139.33,139.26,64.65]
[1723821196795,7.448,139.35,139.26,64.65]
[1723821197000,75.63752183,139.35,139.24,70.75]
[1723821197192,3.5891,139.29,139.28,0.05097508]
[1723821198391,3.5903,139.25,139.19,64.65]
[1723821198590,10.98752183,139.35,139.17,6.27811372]
[1723821198591,68.2451743,139.26,139.17,70.92811372]
[1723821198788,64.65,139.26,139.19,3.5915]
[1723821198992,64.65,139.26,139.17,70.92811372]
[1723821198993,3.58907165,139.25,139.17,70.92811372]
[1723821199297,64.65,139.26,139.2,3.5914]
[1723821199499,3.58045616,139.27,139.17,70.92811372]
[1723821199693,1.3782,139.28,139.22,0.05303157]
[1723821199994,0.04678339,139.24,139.22,0.05303157]
[1723821200785,64.65,139.23,139.05,7.1905]
[1723821200988,3.5912,139.21,139.17,3.592]
[1723821201391,9.69646487,139.24,139.14,68.1513108]
[1723821201593,9.69646487,139.24,139.13,2.5783]
[1723821201786,64.65,139.22,139.13,2.5783]
[1723821201993,3.5921,139.18,139.14,3.5928]
[1723821202194,1.3282,139.22,139.13,2.5783]
[1723821202394,0.04589445,139.2,139.17,0.05525671]
[1723821202596,3.63759445,139.2,139.17,0.05525671]
[1723821202901,0.04589445,139.2,139.17,0.05525671]
[1723821203104,3.5919,139.18,139.17,0.05525671]
[1723821203291,0.04589445,139.2,139.17,0.05525671]
[1723821204303,3.5919,139.18,139.17,0.05525671]
[1723821205699,3.5918,139.19,139.17,0.05525671]
[1723821207098,0.04589445,139.2,139.17,0.05525671]
[1723821207799,3.5918,139.19,139.17,0.05525671]
[1723821207993,0.04589445,139.2,139.17,0.05525671]
[1723821208195,3.5919,139.18,139.17,0.05525671]
[1723821210401,64.69589445,139.2,139.09,64.65]
[1723821210705,7.3769,139.19,139.09,64.65]
[1723821210898,64.65,139.18,139.09,64.65]
[1723821211095,3.5935,139.12,139.09,64.65]
[1723821211294,3.5935,139.12,139.08,6.1]
[1723821211495,3.5935,139.12,139.09,3.5942]
[1723821211699,3.594,139.1,139.07,2.659]
[1723821211900,3.594,139.1,139.09,0.05384991]
[1723821213503,0.05350521,139.11,139.01,3.9262]
[1723821213504,7.24150521,139.11,139.01,3.9262]
[1723821213708,1.2857,139.11,139.02,64.65]
[1723821214028,3.5943,139.09,139.04,64.65]
[1723821214204,6.1,139.11,139.04,64.65]
[1723821214404,6.1,139.11,139.04,68.2454]
[1723821214611,3.5947,139.08,139.04,68.2454]
[1723821215107,3.5947,139.08,139.06,0.0479511]
[1723821215300,3.5948,139.07,139.06,0.0479511]
[1723821215701,3.5946,139.08,139.06,0.0479511]
[1723821216809,3.5948,139.07,139.06,0.0479511]
[1723821220712,3.5946,139.08,139.06,0.0479511]
[1723821221012,0.0486957,139.09,139.06,0.0479511]
[1723821221319,0.0486957,139.09,139.06,64.6979511]
[1723821221709,0.0486957,139.09,139.08,3.5945]
[1723821221916,0.0486957,139.09,139.08,68.2445]
[1723821222517,3.5933,139.13,139.08,64.65]
[1723821222711,3.5933,139.13,139.08,65.9538]
[1723821222913,3.5933,139.13,139.1,3.5939]
[1723821223419,3.64017772,139.13,139.1,3.64686772]
[1723821223829,0.04687772,139.13,139.11,3.5936]
[1723821224623,0.04687772,139.13,139.12,3.5935]
[1723821225129,0.04687772,139.13,139.11,3.5936]
[1723821225919,3.64007772,139.13,139.1,68.29676772]
[1723821226124,3.64007772,139.13,139.1,3.64676772]
[1723821226526,3.5935,139.12,139.1,3.64676772]
[1723821226731,0.04687772,139.13,139.1,3.64676772]
[1723821226938,0.04687772,139.13,139.1,0.05296772]
[1723821227629,3.5937,139.11,139.1,0.05296772]
[1723821229722,3.5936,139.12,139.1,0.05296772]
[1723821230126,0.04687772,139.13,139.1,0.05296772]
[1723821230323,3.5937,139.11,139.1,0.05296772]
[1723821230616,0.04687772,139.13,139.1,0.05296772]
[1723821230821,3.5936,139.12,139.1,0.05296772]
[1723821231130,0.04687772,139.13,139.1,0.05296772]
[1723821231426,3.5936,139.12,139.1,0.05296772]
[1723821231820,3.5937,139.11,139.1,0.05296772]
[1723821232729,3.5936,139.12,139.1,0.05296772]
[1723821233219,3.5937,139.11,139.1,0.05296772]
[1723821234227,0.04687772,139.13,139.1,0.05296772]
[1723821234928,3.5937,139.11,139.1,0.05296772]
[1723821235124,0.04687772,139.13,139.1,0.05296772]
[1723821235427,3.5937,139.11,139.1,0.05296772]
[1723821241228,3.5936,139.12,139.1,0.05296772]
[1723821242139,3.64017772,139.13,139.1,0.05296772]
[1723821242323,0.04687772,139.13,139.1,0.05296772]
[1723821242736,0.04687772,139.13,139.1,3.64676772]
[1723821243134,0.04687772,139.13,139.1,0.05296772]
[1723821243330,51.84687772,139.13,139.1,0.05296772]
[1723821243528,51.8,139.11,139.1,0.05296772]
[1723821243736,58.988,139.11,139.04,1.3792]
[1723821243931,51.8,139.09,139.02,9.60862133]
[1723821244126,55.34083855,139.09,139.02,9.60862133]
[1723821244329,55.34083855,139.09,139.03,3.5957]
[1723821244833,55.34083855,139.09,139.04,3.5955]
[1723821245230,55.34083855,139.09,139.0,53.0834]
[1723821245421,0.05243649,139.07,139.05,0.05276884]
[1723821246130,3.595,139.06,139.05,0.05276884]
[1723821246327,59.04043649,139.07,138.98,2.5298]
[1723821246529,3.5962,139.02,138.98,6.1267]
[1723821247135,3.5962,139.02,138.99,3.5967]
[1723821247337,3.5959,139.03,138.98,54.3298]
[1723821247925,3.64640381,139.02,138.99,0.0525547]
[1723821248131,0.05030381,139.02,138.99,0.0525547]
[1723821248635,3.5966,139.0,138.99,0.0525547]
[1723821248826,55.3966,139.0,138.99,0.0525547]
[1723821249028,51.8,139.0,138.92,8.7562]
[1723821249235,51.8,139.0,138.92,2.6762]
[1723821249532,51.8,139.0,138.9,51.8]
[1723821249533,7.188,138.99,138.9,51.8]
[1723821249726,3.5977,138.96,138.9,53.1576]
[1723821249930,7.188,138.99,138.94,51.8]
[1723821250238,3.5971,138.98,138.94,51.8]
[1723821250531,3.64355737,138.98,138.95,3.65288001]
[1723821250738,0.04645737,138.98,138.95,0.05508001]
[1723821251234,3.5976,138.96,138.95,0.05508001]
[1723821252434,3.5986,138.93,138.89,3.5993]
[1723821253035,3.5986,138.93,138.9,3.5991]
[1723821253537,0.04838458,138.93,138.9,51.84871154]
[1723821253735,0.04838458,138.93,138.92,51.8]
[1723821253935,0.04838458,138.93,138.91,64.78]
[1723821254539,0.04838458,138.93,138.92,3.5986]
[1723821254838,298.39106198,139.02,138.91,64.78]
[1723821255040,6.08,139.01,138.91,64.78]
[1723821255435,3.5971,138.98,138.94,3.5981]
[1723821255835,3.5971,138.98,138.94,3.5979]
[1723821256143,3.64695497,138.97,138.95,0.05401771]
[1723821257232,3.5976,138.96,138.95,0.05401771]
[1723821260841,0.04955497,138.97,138.95,0.05401771]
[1723821261347,0.04955497,138.97,138.95,3.65181771]
[1723821261846,0.04955497,138.97,138.95,0.05401771]
[1723821263048,0.04955497,138.97,138.96,3.5976]
[1723821263545,0.04955497,138.97,138.95,0.05401771]
[1723821264848,3.64705497,138.97,138.95,0.05401771]
[1723821265545,0.04955497,138.97,138.95,0.05401771]
[1723821267349,0.04955497,138.97,138.95,3.65171771]
[1723821267740,0.04955497,138.97,138.95,0.05401771]
[1723821268455,3.64705497,138.97,138.95,0.05401771]
[1723821268850,0.04955497,138.97,138.95,0.05401771]
[1723821269048,3.5976,138.96,138.95,0.05401771]
[1723821270550,3.64695497,138.97,138.95,0.05401771]
[1723821270751,0.04955497,138.97,138.95,0.05401771]
[1723821271051,0.04955497,138.97,138.95,3.65171771]
[1723821271252,0.04955497,138.97,138.95,0.05401771]
[1723821271843,3.64715497,138.97,138.95,0.05401771]
[1723821272150,0.04955497,138.97,138.95,0.05401771]
[1723821272956,3.64705497,138.97,138.95,0.05401771]
[1723821273257,0.04955497,138.97,138.95,0.05401771]
[1723821273448,3.64705497,138.97,138.95,0.05401771]
[1723821273654,0.04955497,138.97,138.95,0.05401771]
[1723821274653,0.04955497,138.97,138.95,3.65171771]
[1723821277959,0.04955497,138.97,138.96,3.5976]
[1723821279363,7.188,139.03,138.96,53.1205]
[1723821280064,3.5963,139.01,138.99,3.5968]
[1723821280254,7.188,139.03,138.99,3.5968]
[1723821280560,3.5963,139.01,139.0,0.05014776]
[1723821281754,3.64608518,139.02,139.0,0.05014776]
[1723821282359,0.04988518,139.02,139.0,0.05014776]
[1723821283753,3.5963,139.01,139.0,0.05014776]
[1723821285062,0.04988518,139.02,139.0,0.05014776]
[1723821285255,3.64598518,139.02,139.0,0.05014776]
[1723821285962,0.04988518,139.02,139.0,0.05014776]
[1723821286162,0.04988518,139.02,139.01,3.5963]
[1723821286656,0.04988518,139.02,139.0,51.87014776]
[1723821287157,0.04988518,139.02,139.01,3.5963]
[1723821288061,78.53391746,139.07,139.0,51.87014776]
[1723821288256,82.12881746,139.07,139.01,1.2695]
[1723821288459,78.53391746,139.07,139.01,1.2695]
[1723821289150,78.53391746,139.07,139.01,53.0895]
[1723821289350,0.05462135,139.05,139.03,3.5957]
[1723821289574,1.2932,139.12,139.03,51.82]
[1723821289770,1.2932,139.12,139.05,51.82]
[1723821289958,6.06,139.13,139.05,51.82]
[1723821290671,3.5939,139.11,139.08,3.5944]
[1723821291077,3.5942,139.09,139.08,0.05090779]
[1723821292052,10.7822,139.09,139.08,0.05090779]
[1723821292254,3.5953,139.05,139.02,3.5959]
[1723821292473,51.82,139.06,138.97,53.1227]
[1723821292768,51.82,139.06,138.99,3.5967]
[1723821292962,51.82,139.06,138.97,53.1227]
[1723821293266,3.5959,139.03,138.97,53.1227]
[1723821293467,3.64609535,139.03,139.0,0.05460826]
[1723821294203,3.5961,139.02,139.0,0.05460826]
[1723821294585,3.5963,139.01,139.0,0.05460826]
[1723821295766,62.6043,139.01,139.0,0.05460826]
[1723821296562,55.4163,139.01,139.0,0.05460826]
[1723821296763,62.6043,139.01,139.0,0.05460826]
[1723821299659,10.7843,139.01,139.0,0.05460826]
[1723821301266,0.05019535,139.03,139.0,0.05460826]
[1723821302365,3.64609535,139.03,139.0,0.05460826]
[1723821303070,0.05019535,139.03,139.0,0.05460826]
[1723821303370,51.82,139.01,139.0,0.05460826]
[1723821303568,51.82,139.01,138.91,6.06]
[1723821303766,51.82,138.99,138.91,6.06]
[1723821303962,3.5978,138.96,138.92,3.5985]
[1723821304261,3.5978,138.96,138.89,51.82]
[1723821304572,3.5975,138.97,138.93,3.5983]
[1723821304769,3.54759139,139.0,138.91,51.82]
[1723821304976,51.82,138.99,138.9,51.82]
[1723821305171,3.64704049,138.94,138.91,0.05364431]
[1723821305667,3.5984,138.93,138.91,0.05364431]
[1723821305867,0.04874049,138.94,138.91,0.05364431]
[1723821305868,0.04874049,138.94,138.91,3.65254431]
[1723821306061,0.04874049,138.94,138.91,0.05364431]
[1723821306972,7.23674049,138.94,138.91,0.05364431]
[1723821307162,7.188,138.92,138.91,0.05364431]
[1723821307364,7.188,138.92,138.83,51.82]
[1723821307563,7.188,138.92,138.82,57.88]
[1723821307564,7.188,138.9,138.82,57.88]
[1723821307763,7.188,138.9,138.82,51.82]
[1723821307971,3.5998,138.88,138.84,3.6007]
[1723821308172,7.188,138.9,138.82,51.82]
[1723821308475,3.6003,138.86,138.82,3.6011]
[1723821308878,7.188,138.92,138.85,0.05032487]
[1723821309088,0.05086494,138.87,138.85,0.05032487]
[1723821309580,13.248,138.9,138.85,0.05032487]
[1723821309971,0.0456821,138.87,138.85,0.05032487]
[1723821311368,6.04,138.93,138.86,51.82]
[1723821311576,6.04,138.95,138.88,51.82]
[1723821312476,1.3203,138.98,138.86,55.34561431]
[1723821312680,1.3203,138.98,138.9,51.82]
[1723821312873,3.5985,138.93,138.89,3.5992]
[1723821313278,3.5988,138.92,138.88,55.4195]
[1723821313472,3.5988,138.92,138.9,0.05451748]
[1723821313673,0.04928791,138.93,138.9,51.87451748]
[1723821314476,0.04928791,138.93,138.91,3.5987]
[1723821314677,0.04928791,138.93,138.9,51.87451748]
[1723821315177,0.04928791,138.93,138.9,55.47351748]
[1723821315382,0.04928791,138.93,138.9,51.87451748]
[1723821315580,0.04928791,138.93,138.9,55.47361748]
[1723821315784,0.04928791,138.93,138.9,51.87451748]
[1723821316182,3.64768791,138.93,138.9,51.87451748]
[1723821316789,0.04928791,138.93,138.9,51.87451748]
[1723821317290,0.04928791,138.93,138.92,55.4186]
[1723821318094,1.3281,139.01,138.92,51.82]
[1723821318293,20.55350114,139.05,138.94,51.82]
[1723821318294,1.3293,139.02,138.94,51.82]
[1723821318495,3.597,138.99,138.95,3.5977]
[1723821318696,1.3293,139.02,138.94,53.0953]
[1723821318891,1.3293,139.02,138.91,6.04]
[1723821318892,51.82,138.99,138.91,6.04]
[1723821319092,51.82,138.97,138.91,6.04]
[1723821319297,0.04761746,138.96,138.94,0.04749427]
[1723821319997,51.82,138.95,138.88,2.6444]
[1723821320295,51.82,138.95,138.86,51.82]
[1723821320296,7.188,138.94,138.86,51.82]
[1723821320601,51.82,138.95,138.82,1.3175]
[1723821320602,3.5995,138.89,138.85,3.6002]
[1723821320797,3.5995,138.89,138.82,59.1775]
[1723821320798,55.436206,138.92,138.82,59.1775]
[1723821321097,53.1906,138.93,138.84,51.82]
[1723821321293,0.04819337,138.88,138.86,0.05320387]
[1723821321692,53.1906,138.93,138.86,0.05320387]
[1723821322197,0.05253116,138.88,138.86,51.87320387]
[1723821322698,7.188,138.94,138.86,51.87320387]
[1723821322900,0.05388212,138.88,138.86,0.05320387]
[1723821323200,51.82,138.93,138.86,0.05320387]
[1723821323593,0.05014891,138.88,138.86,3.65320387]
[1723821323899,0.05014891,138.88,138.86,0.05320387]
[1723821324096,7.188,138.94,138.86,0.05320387]
[1723821324493,6.04,138.95,138.87,51.82]
[1723821324695,6.04,138.95,138.88,51.82]
[1723821325003,3.65406568,138.92,138.9,0.04588408]
[1723821326300,3.5989,138.91,138.9,0.04588408]
[1723821326995,3.5989,138.91,138.84,3.6005]
[1723821326996,51.82,138.91,138.84,3.6005]
[1723821327698,59.008,138.9,138.83,1.2602]
[1723821327893,59.008,138.9,138.82,7.3575]
[1723821328087,59.008,138.9,138.82,1.3175]
[1723821328293,51.82,138.88,138.79,3.62820774]
[1723821328596,0.04759608,138.87,138.85,0.04880714]
[1723821328832,3.6009,138.84,138.8,3.6016]
[1723821328995,0.04759608,138.87,138.82,0.04806937]
[1723821329194,65.048,138.88,138.82,0.04806937]
[1723821329498,3.6009,138.84,138.82,0.04806937]
[1723821330000,0.05188382,138.86,138.82,51.86806937]
[1723821330204,0.05188382,138.86,138.83,3.6008]
[1723821330700,0.05188382,138.86,138.84,55.4207]
[1723821331202,0.05188382,138.86,138.84,51.82]
[1723821331594,0.05188382,138.86,138.83,3.6009]
[1723821331995,0.05188382,138.86,138.82,55.46926937]
[1723821332200,0.05188382,138.86,138.82,0.04806937]
[1723821332599,3.601,138.83,138.82,0.04806937]
[1723821333409,7.16657175,138.83,138.82,0.04806937]
[1723821333601,3.601,138.83,138.82,0.04806937]
[1723821334102,57.91188382,138.86,138.82,0.04806937]
[1723821334103,0.05188382,138.86,138.82,0.04806937]
[1723821334705,3.601,138.83,138.82,0.04806937]
[1723821338305,3.6022,138.79,138.73,54.4109]
[1723821338702,3.6022,138.79,138.75,3.6029]
[1723821339001,3.6023,138.78,138.75,3.6029]
[1723821339399,3.6027,138.77,138.75,0.05189417]
[1723821339798,0.0493736,138.78,138.75,3.65479417]
[1723821340005,0.0493736,138.78,138.75,55.47479417]
[1723821340194,0.0493736,138.78,138.75,51.87189417]
[1723821340506,0.0493736,138.78,138.77,55.4225]
[1723821340720,0.0493736,138.78,138.76,51.82]
[1723821340903,0.0493736,138.78,138.76,55.4226]
[1723821341403,0.0493736,138.78,138.75,0.05189417]
[1723821342698,3.6028,138.76,138.75,0.05189417]
[1723821344206,0.0493736,138.78,138.75,51.87189417]
[1723821344612,3.6026,138.77,138.75,51.87189417]
[1723821344804,0.0493736,138.78,138.75,51.87189417]
[1723821345105,0.0493736,138.78,138.77,55.4225]
[1723821345304,3.6014,138.82,138.77,51.82]
[1723821345502,3.6014,138.82,138.8,51.82]
[1723821345699,6.04,138.85,138.8,51.82]
[1723821345897,6.04,138.85,138.76,7.46409127]
[1723821345898,57.86,138.91,138.81,51.82]
[1723821346304,3.6003,138.86,138.83,55.4208]
[1723821346704,3.6003,138.86,138.85,0.04726032]
[1723821346903,3.64873771,138.87,138.85,0.04726032]
[1723821347098,0.04873771,138.87,138.85,0.04726032]
[1723821348400,3.64883771,138.87,138.85,0.04726032]
[1723821349412,3.6002,138.86,138.85,0.04726032]
[1723821349710,0.04873771,138.87,138.85,0.04726032]
[1723821350304,0.04873771,138.87,138.85,3.64766032]
[1723821350607,0.04873771,138.87,138.85,51.86726032]
[1723821351311,0.04873771,138.87,138.86,3.6002]
[1723821352013,3.5985,138.93,138.85,51.86726032]
[1723821352305,3.5983,138.94,138.89,51.82]
[1723821352516,3.5983,138.94,138.9,3.599]
[1723821352813,6.04,138.97,138.9,3.599]
[1723821353013,3.5984,138.93,138.9,3.599]
[1723821353212,0.04965806,138.93,138.91,0.04537967]
[1723821353439,0.04965806,138.93,138.91,51.86537967]
[1723821355113,0.04965806,138.93,138.91,0.04537967]
[1723821355811,3.5986,138.92,138.91,0.04537967]
[1723821360308,3.64815806,138.93,138.91,0.04537967]
[1723821360515,0.04965806,138.93,138.91,0.04537967]
[1723821360716,3.5986,138.92,138.91,0.04537967]
[1723821361020,0.04965806,138.93,138.91,0.04537967]
[1723821361411,3.64825806,138.93,138.91,0.04537967]
[1723821361638,0.04965806,138.93,138.91,0.04537967]
[1723821361814,3.5986,138.92,138.91,0.04537967]
[1723821362620,0.04965806,138.93,138.82,51.82]
[1723821362621,51.86965806,138.93,138.82,51.82]
[1723821362817,51.82,138.91,138.82,51.82]
[1723821363016,51.82,138.89,138.81,6.04]
[1723821363326,51.82,138.87,138.78,51.82]
[1723821363527,51.82,138.87,138.79,3.602]
[1723821363728,0.05200896,138.84,138.81,0.04912518]
[1723821364028,3.6014,138.82,138.81,0.04912518]
[1723821367213,3.601,138.83,138.81,0.04912518]
[1723821367415,0.05200896,138.84,138.81,0.04912518]
[1723821368024,3.6012,138.83,138.81,0.04912518]
[1723821368222,0.05200896,138.84,138.81,0.04912518]
[1723821368425,3.6011,138.83,138.81,0.04912518]
[1723821369218,0.05200896,138.84,138.82,51.82]
[1723821369717,1.0,138.9,138.82,51.82]
[1723821369927,60.4087,138.92,138.85,51.82]
[1723821370326,3.6001,138.87,138.85,51.82]
[1723821370526,3.55620504,138.9,138.85,51.82]
[1723821370926,3.6001,138.87,138.86,0.04539598]
[1723821371150,0.04999272,138.89,138.86,0.04539598]
[1723821371517,3.5997,138.88,138.86,0.04539598]
[1723821372123,0.04999272,138.89,138.87,51.82]
[1723821372324,0.04999272,138.89,138.88,51.82]
[1723821372524,6.02,138.96,138.88,51.82]
[1723821373327,6.02,138.96,138.89,3.5993]
[1723821373623,6.02,138.96,138.88,51.82]
[1723821373821,0.04740872,138.94,138.91,0.05012542]
[1723821374430,3.5986,138.92,138.91,0.05012542]
[1723821376535,0.04740872,138.94,138.91,0.05012542]
[1723821377025,3.5985,138.93,138.91,0.05012542]
[1723821379625,3.5986,138.92,138.91,0.05012542]
[1723821380529,3.5999,138.88,138.83,71.10853023]
[1723821380729,64.82,138.91,138.83,1.2991]
[1723821380924,3.6003,138.86,138.83,1.2991]
[1723821381128,10.73341304,138.9,138.83,1.2991]
[1723821381335,3.6008,138.84,138.81,6.02]
[1723821381630,3.6008,138.84,138.79,64.82]
[1723821381825,3.65011387,138.84,138.81,0.05506985]
[1723821382225,3.65011387,138.84,138.81,3.65646985]
[1723821382729,0.04931387,138.84,138.81,0.05506985]
[1723821383134,3.6011,138.83,138.81,0.05506985]
[1723821384430,3.6012,138.82,138.81,0.05506985]
[1723821389338,72.008,138.83,138.74,64.82]
[1723821389553,64.82,138.81,138.73,1.3448]
[1723821389742,64.82,138.81,138.72,64.82]
[1723821389963,3.6029,138.76,138.72,68.4236]
[1723821390336,3.6032,138.75,138.7,64.82]
[1723821390537,3.6032,138.75,138.73,0.04820439]
[1723821390538,3.65002975,138.75,138.73,0.04820439]
[1723821390848,9.67002975,138.75,138.73,0.04820439]
[1723821391741,6.06682975,138.75,138.73,0.04820439]
[1723821391942,0.04682975,138.75,138.73,0.04820439]
[1723821392940,3.6033,138.74,138.73,0.04820439]
[1723821393338,3.6033,138.74,138.61,64.82]
[1723821393339,64.82,138.74,138.61,64.82]
[1723821393567,3.6053,138.67,138.63,3.606]
[1723821393934,3.63344061,138.71,138.63,64.82]
[1723821394140,6.02,138.7,138.6,6.39034957]
[1723821394343,6.02,138.7,138.63,64.82]
[1723821394641,0.05312577,138.68,138.66,0.04912198]
[1723821395450,6.02,138.7,138.66,0.04912198]
[1723821395734,3.6048,138.69,138.66,0.04912198]
[1723821396140,0.05166903,138.68,138.66,0.04912198]
[1723821396534,3.65656903,138.68,138.66,0.04912198]
[1723821398042,0.05166903,138.68,138.66,0.04912198]
[1723821398440,3.6049,138.67,138.66,0.04912198]
[1723821399540,3.65646903,138.68,138.66,0.04912198]
[1723821399844,0.05166903,138.68,138.66,0.04912198]
[1723821400438,0.05166903,138.68,138.67,64.82]
[1723821403040,0.05166903,138.68,138.66,0.04912198]
[1723821403646,3.6049,138.67,138.66,0.04912198]
[1723821403847,0.05166903,138.68,138.66,0.04912198]
[1723821404951,0.05166903,138.68,138.67,64.82]
[1723821405247,1.3907,138.77,138.67,64.82]
[1723821405248,3.56227385,138.79,138.67,64.82]
[1723821405445,6.0,138.79,138.71,64.82]
[1723821405642,3.55114308,138.78,138.71,64.82]
[1723821405841,6.0,138.79,138.71,64.82]
[1723821406248,3.6032,138.74,138.71,68.4238]
[1723821406548,0.05058948,138.76,138.74,0.04644439]
[1723821406850,0.05058948,138.76,138.71,68.4237]
[1723821407244,0.05058948,138.76,138.74,0.05382174]
[1723821407449,0.05058948,138.76,138.74,64.87382174]
[1723821408448,8.7375,138.84,138.74,66.21902174]
[1723821408648,8.7375,138.84,138.77,64.82]
[1723821408849,3.6012,138.82,138.77,64.82]
[1723821409047,6.0,138.84,138.77,68.4222]
[1723821409455,6.0,138.84,138.77,64.82]
[1723821409953,0.05346944,138.82,138.79,0.04657471]
[1723821410252,3.6014,138.81,138.79,0.04657471]
[1723821410461,0.05346944,138.82,138.79,0.04657471]
[1723821411655,0.05346944,138.82,138.8,64.82]
[1723821412359,0.05346944,138.82,138.8,68.4213]
[1723821413159,0.05346944,138.82,138.81,3.6013]
[1723821413353,0.05346944,138.82,138.8,64.82]
[1723821414065,0.05346944,138.82,138.79,0.04657471]
[1723821414965,3.6015,138.8,138.79,0.04657471]
[1723821417354,0.05346944,138.82,138.79,0.04657471]
[1723821417858,3.65456944,138.82,138.79,0.04657471]
[1723821418160,0.05346944,138.82,138.79,0.04657471]
[1723821418360,3.6014,138.81,138.79,0.04657471]
[1723821420252,0.05346944,138.82,138.79,0.04657471]